fUSD/lending_fUSD_20250906
["ID","MTS","AMOUNT","RATE_DAILY","PERIOD"]
[383912456,1757171539300,-400.0,0.00037534,8]
[383912457,1757171539310,-346.418084,0.00037534,30]
[383912458,1757171539319,-315.384747,0.00037534,30]
[383912459,1757171539328,-201.482259,0.00037534,30]
[383912460,1757171539338,-644.322575,0.00037534,30]
[383912461,1757171539347,-210.656511,0.00037534,30]
[383912462,1757171539357,-400.0,0.00037534,8]
[383912463,1757171539366,-346.418084,0.00037534,30]
[383912464,1757171539377,-172.287321,0.00037534,30]
[383912465,1757171539387,-400.0,0.00037534,8]
[383912466,1757171539398,-201.482259,0.00037534,30]
[383912467,1757171539408,-315.384747,0.00037534,30]
[383912468,1757171539418,-644.322575,0.00037534,30]
[383912469,1757171539428,-210.656511,0.00037534,30]
[383912470,1757171539438,-400.0,0.00037534,8]
[383912471,1757171539448,-346.418084,0.00037534,30]
[383912472,1757171539457,-400.0,0.00037534,8]
[383912473,1757171539467,-172.287321,0.00037534,30]
[383912474,1757171539477,-400.0,0.00037534,8]
[383912475,1757171539487,-201.482259,0.00037534,30]
[383912476,1757171539497,-315.384747,0.00037534,30]
[383912477,1757171539507,-172.287321,0.00037534,30]
[383912478,1757171539517,-807.77,0.00037534,8]
[383912479,1757171539527,-201.482259,0.00037534,30]
[383912480,1757171539537,-400.0,0.00037534,8]
[383912481,1757171539548,-172.287321,0.00037534,30]
[383912482,1757171539558,-1470.18,0.00037534,8]
[383912483,1757171539572,-259.13215113,0.00037534,8]
[383912484,1757171539581,-481.87,0.00037534,8]
[383912485,1757171539591,-486.75,0.00037534,8]
[383912486,1757171539601,-4237.61,0.00037534,8]
[383912487,1757171539611,-315.384747,0.00037534,30]
[383912488,1757171539622,-400.0,0.00037534,8]
[383912489,1757171539633,-1400.7,0.00037534,8]
[383912490,1757171539644,-400.0,0.00037534,8]
[383912491,1757171539654,-400.0,0.00037534,8]
[383912492,1757171539664,-666.63,0.00037534,8]
[383912493,1757171539675,-151.0,0.00037534,30]
[383912494,1757171539685,-518.01184778,0.00037534,8]
[383912495,1757171539696,-400.0,0.00037534,8]
[383912496,1757171539706,-3913.69,0.00037534,8]
[383912497,1757171539717,-400.0,0.00037534,8]
[383912498,1757171539727,-151.0,0.00037534,30]
[383912499,1757171539738,-558.61,0.00037534,8]
[383912500,1757171539748,-151.0,0.00037534,30]
[383912501,1757171539759,-857.87,0.00037534,8]
[383912502,1757171539770,-523.32,0.00037534,8]
[383912503,1757171539780,-1022.53,0.00037534,8]
[383912504,1757171539790,-491.22,0.00037534,8]
[383912505,1757171539800,-151.0,0.00037534,30]
[383912506,1757171539810,-440.83,0.00037534,8]
[383912507,1757171539820,-400.0,0.00037534,8]
[383912508,1757171539830,-527.91,0.00037534,8]
[383912509,1757171539841,-613.93,0.00037534,8]
[383912510,1757171539852,-270.46754351,0.00037534,8]
[383912511,1757171539864,-151.0,0.00037534,30]
[383912512,1757171539878,-400.0,0.00037534,8]
[383912513,1757171539887,-151.0,0.00037534,30]
[383912514,1757171539898,-819.34,0.00037534,8]
[383912515,1757171539908,-686.88,0.00037534,8]
[383912516,1757171539919,-400.0,0.00037534,8]
[383912517,1757171539929,-400.0,0.00037534,8]
[383912518,1757171539939,-400.0,0.00037534,8]
[383912519,1757171539949,-151.0,0.00037534,30]
[383912520,1757171539959,-151.0,0.00037534,30]
[383912521,1757171539969,-454.21,0.00037534,8]
[383912522,1757171539979,-677.45,0.00037534,8]
[383912523,1757171539990,-151.0,0.00037534,30]
[383912524,1757171540001,-525.22,0.00037534,8]
[383912525,1757171540011,-500.62,0.00037534,8]
[383912526,1757171540021,-411.22647143,0.00037534,8]
[383912527,1757171540031,-771.563949,0.00037534,30]
[383912528,1757171540041,-400.0,0.00037534,8]
[383912529,1757171540052,-771.563949,0.00037534,30]
[383912530,1757171540062,-771.563949,0.00037534,30]
[383912531,1757171540073,-223.99356,0.00037534,30]
[383912532,1757171540084,-400.0,0.00037534,8]
[383912533,1757171540094,-400.0,0.00037534,8]
[383912534,1757171540105,-400.0,0.00037534,8]
[383912535,1757171540116,-223.99356,0.00037534,30]
[383912536,1757171540127,-424.76,0.00037534,8]
[383912537,1757171540137,-400.0,0.00037534,8]
[383912538,1757171540148,-666.85,0.00037534,8]
[383912539,1757171540157,-400.0,0.00037534,8]
[383912540,1757171540168,-771.563949,0.00037534,30]
[383912541,1757171540178,-223.99356,0.00037534,30]
[383912542,1757171540188,-424.8,0.00037534,8]
[383912543,1757171540198,-400.0,0.00037534,8]
[383912544,1757171540208,-223.99356,0.00037534,30]
[383912545,1757171540218,-151.0,0.00037534,30]
[383912546,1757171540227,-534.96,0.00037534,8]
[383912547,1757171540237,-255.13137689,0.00037534,8]
[383912548,1757171540247,-151.0,0.00037534,30]
[383912549,1757171540258,-400.0,0.00037534,8]
[383912550,1757171540268,-1573.52,0.00037534,8]
[383912551,1757171540278,-2301.18,0.00037534,8]
[383912552,1757171540289,-400.0,0.00037534,8]
[383912553,1757171540299,-400.0,0.00037534,8]
[383912554,1757171540309,-581.198494,0.00037534,30]
[383912555,1757171540319,-994.18,0.00037534,8]
[383912556,1757171540329,-151.86608,0.00037534,30]
[383912557,1757171540340,-400.0,0.00037534,8]
[383912558,1757171540350,-151.0,0.00037534,30]
[383912559,1757171540360,-151.0,0.00037534,30]
[383912560,1757171540370,-581.198494,0.00037534,30]
[383912561,1757171540380,-1335.37,0.00037534,8]
[383912562,1757171540391,-400.0,0.00037534,8]
[383912563,1757171540402,-400.0,0.00037534,8]
[383912564,1757171540412,-400.0,0.00037534,8]
[383912565,1757171540422,-884.001055,0.00037534,30]
[383912566,1757171540432,-694.9,0.00037534,8]
[383912567,1757171540442,-151.86608,0.00037534,30]
[383912568,1757171540453,-151.0,0.00037534,30]
[383912569,1757171540462,-581.198494,0.00037534,30]
[383912570,1757171540473,-400.0,0.00037534,8]
[383912571,1757171540483,-406.80231412,0.00037534,8]
[383912572,1757171540493,-151.86608,0.00037534,30]
[383912573,1757171540503,-151.0,0.00037534,30]
[383912574,1757171540514,-581.198494,0.00037534,30]
[383912575,1757171540524,-151.0,0.00037534,30]
[383912576,1757171540534,-884.001055,0.00037534,30]
[383912577,1757171540544,-440.97,0.00037534,8]
[383912578,1757171540555,-400.0,0.00037534,8]
[383912579,1757171540568,-151.0,0.00037534,30]
[383912580,1757171540578,-429.02,0.00037534,8]
[383912581,1757171540588,-448.05,0.00037534,8]
[383912582,1757171540600,-151.86608,0.00037534,30]
[383912583,1757171540611,-400.0,0.00037534,8]
[383912584,1757171540621,-151.0,0.00037534,30]
[383912585,1757171540631,-1031.45,0.00037534,8]
[383912586,1757171540643,-400.0,0.00037534,8]
[383912587,1757171540653,-400.0,0.00037534,8]
[383912588,1757171540663,-493.53,0.00037534,8]
[383912589,1757171540673,-151.0,0.00037534,30]
[383912590,1757171540683,-151.0,0.00037534,30]
[383912591,1757171540693,-884.001055,0.00037534,30]
[383912592,1757171540703,-2599.28,0.00037534,8]
[383912593,1757171540714,-453.35694174,0.00037534,8]
[383912594,1757171540724,-525.12,0.00037534,8]
[383912595,1757171540734,-518.48,0.00037534,8]
[383912596,1757171540744,-151.0,0.00037534,30]
[383912597,1757171540754,-400.0,0.00037534,8]
[383912598,1757171540764,-188.12238,0.00037534,30]
[383912599,1757171540774,-884.001055,0.00037534,30]
[383912600,1757171540783,-585.16,0.00037534,8]
[383912601,1757171540793,-400.0,0.00037534,8]
[383912602,1757171540802,-400.0,0.00037534,8]
[383912603,1757171540813,-906.65,0.00037534,8]
[383912604,1757171540823,-400.0,0.00037534,8]
[383912605,1757171540833,-400.0,0.00037534,8]
[383912606,1757171540843,-400.0,0.00037534,8]
[383912607,1757171540854,-400.0,0.00037534,8]
[383912608,1757171540864,-238.379131,0.00037534,30]
[383912609,1757171540873,-400.0,0.00037534,8]
[383912610,1757171540884,-400.0,0.00037534,8]
[383912611,1757171540895,-238.379131,0.00037534,30]
[383912612,1757171540906,-1010.34,0.00037534,8]
[383912613,1757171540916,-4402.47,0.00037534,8]
[383912614,1757171540926,-702.786079,0.00037534,30]
[383912615,1757171540936,-504.89,0.00037534,8]
[383912616,1757171540947,-238.379131,0.00037534,30]
[383912617,1757171540957,-702.786079,0.00037534,30]
[383912618,1757171540967,-255.35578189,0.00037534,8]
[383912619,1757171540978,-400.0,0.00037534,8]
[383912620,1757171540988,-238.379131,0.00037534,30]
[383912621,1757171540999,-400.0,0.00037534,8]
[383912622,1757171541010,-8768.83,0.00037534,8]
[383912623,1757171541020,-702.786079,0.00037534,30]
[383912624,1757171541031,-400.0,0.00037534,8]
[383912625,1757171541040,-400.0,0.00037534,8]
[383912626,1757171541050,-400.0,0.00037534,8]
[383912627,1757171541061,-400.0,0.00037534,8]
[383912628,1757171541071,-702.786079,0.00037534,30]
[383912629,1757171541081,-1577.02,0.00037534,8]
[383912630,1757171541091,-2234.93,0.00037534,8]
[383912631,1757171541101,-151.0,0.00037534,30]
[383912632,1757171541111,-400.0,0.00037534,8]
[383912633,1757171541122,-516.56,0.00037534,8]
[383912634,1757171541132,-151.0,0.00037534,30]
[383912635,1757171541143,-402.84,0.00037534,8]
[383912636,1757171541153,-151.0,0.00037534,30]
[383912637,1757171541163,-400.0,0.00037534,8]
[383912638,1757171541174,-1194.33,0.00037534,8]
[383912639,1757171541185,-400.0,0.00037534,8]
[383912640,1757171541196,-400.0,0.00037534,8]
[383912641,1757171541207,-819.48,0.00037534,8]
[383912642,1757171541218,-400.0,0.00037534,8]
[383912643,1757171541227,-400.0,0.00037534,8]
[383912644,1757171541237,-481.48,0.00037534,8]
[383912645,1757171541247,-766.482066,0.00037534,30]
[383912646,1757171541257,-588.21,0.00037534,8]
[383912647,1757171541267,-400.0,0.00037534,8]
[383912648,1757171541276,-766.482066,0.00037534,30]
[383912649,1757171541287,-766.482066,0.00037534,30]
[383912650,1757171541297,-201.09182848,0.00037534,8]
[383912651,1757171541307,-436.59,0.00037534,8]
[383912652,1757171541318,-2640.14,0.00037534,8]
[383912653,1757171541328,-766.482066,0.00037534,30]
[383912654,1757171541338,-414.87,0.00037534,8]
[383912655,1757171541348,-1565.2,0.00037534,8]
[383912656,1757171541358,-400.0,0.00037534,8]
[383912657,1757171541369,-400.0,0.00037534,8]
[383912658,1757171541379,-1250.41,0.00037534,8]
[383912659,1757171541389,-400.0,0.00037534,8]
[383912660,1757171541399,-400.0,0.00037534,8]
[383912661,1757171541409,-1545.26,0.00037534,8]
[383912662,1757171541419,-518.55,0.00037534,8]
[383912663,1757171541429,-554.77,0.00037534,8]
[383912664,1757171541438,-315.05881645,0.00037534,8]
[383912665,1757171541448,-2616.656539,0.00037534,30]
[383912666,1757171541458,-756.41,0.00037534,8]
[383912667,1757171541468,-151.0,0.00037534,2]
[383912668,1757171541478,-500.65,0.00037534,8]
[383912669,1757171541487,-719.36,0.00037534,8]
[383912670,1757171541497,-2616.656539,0.00037534,30]
[383912671,1757171541507,-151.0,0.00037534,2]
[383912672,1757171541517,-472.88,0.00037534,8]
[383912673,1757171541527,-2616.656539,0.00037534,30]
[383912674,1757171541537,-358.152526,0.00037534,30]
[383912675,1757171541547,-151.0,0.00037534,30]
[383912676,1757171541764,-418.39889915,0.00037534,8]
[383912677,1757171541785,-202.14227411,0.00037534,8]
[383912678,1757171541797,-895.2,0.00037534,8]
[383912679,1757171541807,-357.64229133,0.00037534,8]
[383912680,1757171541817,-2616.656539,0.00037534,30]
[383912681,1757171541827,-724.14,0.00037534,8]
[383912682,1757171541838,-358.152526,0.00037534,30]
[383912683,1757171541847,-152.217732,0.00037534,30]
[383912684,1757171541858,-400.0,0.00037534,8]
[383912685,1757171541867,-480.72502506,0.00037534,8]
[383912686,1757171541877,-358.152526,0.00037534,30]
[383912687,1757171541887,-400.0,0.00037534,8]
[383912688,1757171541897,-151.0,0.00037534,30]
[383912689,1757171541907,-2337.394473,0.00037534,30]
[383912690,1757171541916,-151.0,0.00037534,30]
[383912691,1757171541926,-3048.68,0.00037534,8]
[383912692,1757171541937,-1135.42,0.00037534,8]
[383912693,1757171541948,-2337.394473,0.00037534,30]
[383912694,1757171541958,-151.0,0.00037534,30]
[383912695,1757171541968,-151.0,0.00037534,30]
[383912696,1757171541979,-358.152526,0.00037534,30]
[383912697,1757171541988,-151.0,0.00037534,30]
[383912698,1757171541998,-400.0,0.00037534,8]
[383912699,1757171542008,-151.0,0.00037534,30]
[383912700,1757171542018,-2337.394473,0.00037534,30]
[383912701,1757171542028,-5387.298387,0.00037534,30]
[383912702,1757171542038,-2337.394473,0.00037534,30]
[383912703,1757171542048,-643.29,0.00037534,8]
[383912704,1757171542058,-523.6,0.00037534,8]
[383912705,1757171542069,-1226.38,0.00037534,8]
[383912706,1757171542079,-400.0,0.00037534,8]
[383912707,1757171542089,-638.06,0.00037534,8]
[383912708,1757171542099,-644.86,0.00037534,8]
[383912709,1757171542109,-421.77,0.00037534,8]
[383912710,1757171542120,-3125.17,0.00037534,8]
[383912711,1757171542131,-858.9,0.00037534,8]
[383912712,1757171542142,-400.0,0.00037534,8]
[383912713,1757171542153,-5387.298387,0.00037534,30]
[383912714,1757171542163,-400.0,0.00037534,8]
[383912715,1757171542174,-170.954605,0.00037534,30]
[383912716,1757171542184,-5387.298387,0.00037534,30]
[383912717,1757171542194,-170.954605,0.00037534,30]
[383912718,1757171542204,-151.0,0.00037534,30]
[383912719,1757171542214,-620.0,0.00037534,8]
[383912720,1757171542224,-400.0,0.00037534,8]
[383912721,1757171542234,-151.0,0.00037534,30]
[383912722,1757171542244,-5387.298387,0.00037534,30]
[383912723,1757171542255,-170.954605,0.00037534,30]
[383912724,1757171542264,-510.75,0.00037534,8]
[383912725,1757171542274,-151.0,0.00037534,30]
[383912726,1757171542284,-1106.27,0.00037534,8]
[383912727,1757171542294,-151.0,0.00037534,30]
[383912728,1757171542303,-400.0,0.00037534,8]
[383912729,1757171542312,-170.954605,0.00037534,30]
[383912730,1757171542322,-151.0,0.00037534,30]
[383912731,1757171542332,-400.0,0.00037534,8]
[383912732,1757171542342,-500.0,0.00037534,2]
[383912733,1757171542352,-151.0,0.00037534,30]
[383912734,1757171542362,-151.0,0.00037534,30]
[383912735,1757171542372,-400.0,0.00037534,8]
[383912736,1757171542382,-623.2,0.00037534,8]
[383912737,1757171542394,-524.19,0.00037534,8]
[383912738,1757171542404,-1128.881981,0.00037534,30]
[383912739,1757171542414,-400.0,0.00037534,8]
[383912740,1757171542424,-492.97,0.00037534,8]
[383912741,1757171542433,-1128.881981,0.00037534,30]
[383912742,1757171542443,-1992.17,0.00037534,8]
[383912743,1757171542453,-1128.881981,0.00037534,30]
[383912744,1757171542463,-400.0,0.00037534,8]
[383912745,1757171542473,-400.0,0.00037534,8]
[383912746,1757171542483,-1128.881981,0.00037534,30]
[383912747,1757171542492,-400.0,0.00037534,8]
[383912748,1757171542502,-2818.6,0.00037534,8]
[383912749,1757171542512,-1314.68,0.00037534,8]
[383912750,1757171542523,-712.7,0.00037534,8]
[383912751,1757171542532,-992.23,0.00037534,120]
[383912752,1757171542542,-995.66,0.00037534,8]
[383912753,1757171542551,-400.0,0.00037534,8]
[383912754,1757171542562,-920.55,0.00037534,8]
[383912755,1757171542576,-400.0,0.00037534,8]
[383912756,1757171542586,-400.0,0.00037534,8]
[383912757,1757171542595,-1567.79,0.00037534,8]
[383912758,1757171542606,-973.39,0.00037534,8]
[383912759,1757171542616,-400.0,0.00037534,8]
[383912760,1757171542626,-400.0,0.00037534,8]
[383912761,1757171542637,-874.07,0.00037534,8]
[383912762,1757171542648,-427.97,0.00037534,8]
[383912763,1757171542659,-400.0,0.00037534,8]
[383912764,1757171542668,-400.0,0.00037534,8]
[383912765,1757171542678,-1126.85,0.00037534,8]
[383912766,1757171542688,-753.77,0.00037534,8]
[383912767,1757171542698,-1185.35,0.00037534,8]
[383912768,1757171542709,-605.22,0.00037534,8]
[383912769,1757171542719,-400.0,0.00037534,8]
[383912770,1757171542728,-1629.61,0.00037534,8]
[383912771,1757171542738,-400.0,0.00037534,8]
[383912772,1757171542750,-400.0,0.00037534,8]
[383912773,1757171542759,-895.51,0.00037534,8]
[383912774,1757171542770,-400.0,0.00037534,8]
[383912775,1757171542779,-400.0,0.00037534,8]
[383912776,1757171542789,-400.0,0.00037534,8]
[383912777,1757171542800,-1333.57,0.00037534,8]
[383912778,1757171542810,-624.690439,0.00037534,30]
[383912779,1757171542820,-624.690439,0.00037534,30]
[383912780,1757171542829,-581.1,0.00037534,8]
[383912781,1757171542838,-3538.68,0.00037534,8]
[383912782,1757171542848,-400.0,0.00037534,8]
[383912783,1757171542858,-624.690439,0.00037534,30]
[383912784,1757171542868,-615.33,0.00037534,8]
[383912785,1757171542878,-1458.45,0.00037534,8]
[383912786,1757171542887,-624.690439,0.00037534,30]
[383912787,1757171542898,-400.0,0.00037534,8]
[383912788,1757171542907,-400.0,0.00037534,8]
[383912789,1757171542917,-400.0,0.00037534,8]
[383912790,1757171542927,-400.0,0.00037534,8]
[383912791,1757171542937,-400.0,0.00037534,8]
[383912792,1757171542947,-330.74258662,0.00037534,8]
[383912793,1757171542956,-400.0,0.00037534,8]
[383912794,1757171542966,-400.0,0.00037534,8]
[383912795,1757171542976,-400.0,0.00037534,8]
[383912796,1757171542986,-245.195949,0.00037534,30]
[383912797,1757171542996,-468.18852974,0.00037534,8]
[383912798,1757171543005,-727.4,0.00037534,8]
[383912799,1757171543015,-283.34553658,0.00037534,8]
[383912800,1757171543024,-1006.32,0.00037534,8]
[383912801,1757171543034,-2151.042427,0.00037534,30]
[383912802,1757171543044,-2070.792925,0.00037534,30]
[383912803,1757171543054,-400.0,0.00037534,8]
[383912804,1757171543064,-435.85,0.00037534,8]
[383912805,1757171543073,-816.22,0.00037534,8]
[383912806,1757171543083,-2151.042427,0.00037534,30]
[383912807,1757171543093,-400.0,0.00037534,8]
[383912808,1757171543102,-455.94,0.00037534,8]
[383912809,1757171543112,-457.05,0.00037534,8]
[383912810,1757171543122,-2151.042427,0.00037534,30]
[383912811,1757171543131,-400.0,0.00037534,8]
[383912812,1757171543142,-1748.103596,0.00037534,30]
[383912813,1757171543152,-2151.042427,0.00037534,30]
[383912814,1757171543161,-400.0,0.00037534,8]
[383912815,1757171543171,-2070.792925,0.00037534,30]
[383912816,1757171543181,-2331.2,0.00037534,8]
[383912817,1757171543190,-400.0,0.00037534,8]
[383912818,1757171543200,-1748.103596,0.00037534,30]
[383912819,1757171543210,-667.62,0.00037534,8]
[383912820,1757171543220,-400.0,0.00037534,8]
[383912821,1757171543229,-2070.792925,0.00037534,30]
[383912822,1757171543239,-477.75,0.00037534,8]
[383912823,1757171543249,-1748.103596,0.00037534,30]
[383912824,1757171543258,-2070.792925,0.00037534,30]
[383912825,1757171543268,-1748.103596,0.00037534,30]
[383912826,1757171543277,-1449.04,0.00037534,8]
[383912827,1757171543287,-400.0,0.00037534,8]
[383912828,1757171543296,-400.0,0.00037534,8]
[383912829,1757171543306,-160.0,0.00037534,14]
[383912830,1757171543316,-160.0,0.00037534,14]
[383912831,1757171543325,-400.0,0.00037534,8]
[383912832,1757171543335,-400.0,0.00037534,8]
[383912833,1757171543344,-160.0,0.00037534,14]
[383912834,1757171543354,-160.0,0.00037534,14]
[383912835,1757171543363,-400.0,0.00037534,8]
[383912836,1757171543373,-160.0,0.00037534,14]
[383912837,1757171543383,-160.0,0.00037534,14]
[383912838,1757171543393,-160.0,0.00037534,14]
[383912839,1757171543403,-160.0,0.00037534,14]
[383912840,1757171543412,-160.0,0.00037534,14]
[383912841,1757171543433,-400.0,0.00037534,8]
[383912842,1757171543457,-160.0,0.00037534,14]
[383912843,1757171543477,-160.0,0.00037534,14]
[383912844,1757171543498,-400.0,0.00037534,8]
[383912845,1757171543519,-400.0,0.00037534,8]
[383912846,1757171543537,-160.0,0.00037534,14]
[383912847,1757171543558,-489.19771184,0.00037534,8]
[383912848,1757171543581,-400.0,0.00037534,8]
[383912849,1757171543602,-160.0,0.00037534,14]
[383912850,1757171543620,-160.0,0.00037534,14]
[383912851,1757171543640,-160.0,0.00037534,14]
[383912852,1757171543658,-468.0,0.00037534,8]
[383912853,1757171543676,-160.0,0.00037534,14]
[383912854,1757171543692,-1182.16,0.00037534,8]
[383912855,1757171543709,-160.0,0.00037534,14]
[383912856,1757171543728,-160.0,0.00037534,14]
[383912857,1757171543746,-271.541194,0.00037534,30]
[383912858,1757171543761,-160.0,0.00037534,14]
[383912859,1757171543778,-400.0,0.00037534,8]
[383912860,1757171543795,-160.0,0.00037534,14]
[383912861,1757171543811,-160.0,0.00037534,14]
[383912862,1757171543827,-160.0,0.00037534,14]
[383912863,1757171543842,-616.402038,0.00037534,30]
[383912864,1757171543859,-271.541194,0.00037534,30]
[383912865,1757171543878,-538.36,0.00037534,8]
[383912866,1757171543895,-160.0,0.00037534,14]
[383912867,1757171543913,-160.0,0.00037534,14]
[383912868,1757171543929,-400.0,0.00037534,8]
[383912869,1757171543945,-160.0,0.00037534,14]
[383912870,1757171543962,-400.0,0.00037534,8]
[383912871,1757171543978,-160.0,0.00037534,14]
[383912872,1757171543994,-160.0,0.00037534,14]
[383912873,1757171544012,-616.402038,0.00037534,30]
[383912874,1757171544029,-271.541194,0.00037534,30]
[383912875,1757171544045,-160.0,0.00037534,14]
[383912876,1757171544062,-516.63,0.00037534,8]
[383912877,1757171544077,-615.32,0.00037534,8]
[383912878,1757171544093,-160.0,0.00037534,14]
[383912879,1757171544110,-160.0,0.00037534,14]
[383912880,1757171544126,-160.0,0.00037534,14]
[383912881,1757171544141,-271.541194,0.00037534,30]
[383912882,1757171544158,-616.402038,0.00037534,30]
[383912883,1757171544176,-160.0,0.00037534,14]
[383912884,1757171544193,-400.0,0.00037534,8]
[383912885,1757171544210,-160.0,0.00037534,14]
[383912886,1757171544226,-400.0,0.00037534,8]
[383912887,1757171544242,-160.0,0.00037534,14]
[383912888,1757171544258,-160.0,0.00037534,14]
[383912889,1757171544274,-160.0,0.00037534,14]
[383912890,1757171544292,-616.402038,0.00037534,30]
[383912891,1757171544307,-412.98,0.00037534,8]
[383912892,1757171544321,-160.0,0.00037534,14]
[383912893,1757171544335,-160.0,0.00037534,14]
[383912894,1757171544350,-160.0,0.00037534,14]
[383912895,1757171544365,-400.0,0.00037534,8]
[383912896,1757171544381,-160.0,0.00037534,14]
[383912897,1757171544398,-160.0,0.00037534,14]
[383912898,1757171544415,-160.0,0.00037534,14]
[383912899,1757171544432,-400.0,0.00037534,8]
[383912900,1757171544448,-160.0,0.00037534,14]
[383912901,1757171544463,-160.0,0.00037534,14]
[383912902,1757171544478,-2132.96,0.00037534,8]
[383912903,1757171544493,-160.0,0.00037534,14]
[383912904,1757171544509,-160.0,0.00037534,14]
[383912905,1757171544525,-151.0,0.00037534,30]
[383912906,1757171544541,-160.0,0.00037534,14]
[383912907,1757171544556,-400.0,0.00037534,8]
[383912908,1757171544574,-2499.57,0.00037534,8]
[383912909,1757171544591,-160.0,0.00037534,14]
[383912910,1757171544607,-160.0,0.00037534,14]
[383912911,1757171544623,-160.0,0.00037534,14]
[383912912,1757171544639,-400.0,0.00037534,8]
[383912913,1757171544654,-156.527146,0.00037534,30]
[383912914,1757171544669,-160.0,0.00037534,14]
[383912915,1757171544684,-160.0,0.00037534,14]
[383912916,1757171544699,-160.0,0.00037534,14]
[383912917,1757171544714,-160.0,0.00037534,14]
[383912918,1757171544728,-160.0,0.00037534,14]
[383912919,1757171544743,-400.0,0.00037534,8]
[383912920,1757171544757,-400.0,0.00037534,8]
[383912921,1757171544773,-160.0,0.00037534,14]
[383912922,1757171544787,-160.0,0.00037534,14]
[383912923,1757171544802,-160.0,0.00037534,14]
[383912924,1757171544816,-160.0,0.00037534,14]
[383912925,1757171544831,-400.0,0.00037534,8]
[383912926,1757171544845,-160.0,0.00037534,14]
[383912927,1757171544859,-160.0,0.00037534,14]
[383912928,1757171544874,-160.0,0.00037534,14]
[383912929,1757171544888,-160.0,0.00037534,14]
[383912930,1757171544903,-482.21,0.00037534,8]
[383912931,1757171544917,-160.0,0.00037534,14]
[383912932,1757171544933,-160.0,0.00037534,14]
[383912933,1757171544950,-400.0,0.00037534,8]
[383912934,1757171544965,-424.36,0.00037534,8]
[383912935,1757171544981,-160.0,0.00037534,14]
[383912936,1757171544997,-439.47,0.00037534,8]
[383912937,1757171545013,-160.0,0.00037534,14]
[383912938,1757171545029,-160.0,0.00037534,14]
[383912939,1757171545044,-400.0,0.00037534,8]
[383912940,1757171545060,-160.0,0.00037534,14]
[383912941,1757171545075,-2235.5,0.00037534,8]
[383912942,1757171545090,-489.75,0.00037534,8]
[383912943,1757171545106,-160.0,0.00037534,14]
[383912944,1757171545121,-160.0,0.00037534,14]
[383912945,1757171545136,-160.0,0.00037534,14]
[383912946,1757171545151,-160.0,0.00037534,14]
[383912947,1757171545167,-160.0,0.00037534,14]
[383912948,1757171545182,-160.0,0.00037534,14]
[383912949,1757171545198,-160.0,0.00037534,14]
[383912950,1757171545213,-1000.0,0.00037534,8]
[383912951,1757171545228,-400.0,0.00037534,8]
[383912952,1757171545243,-160.0,0.00037534,14]
[383912953,1757171545258,-160.0,0.00037534,14]
[383912954,1757171545273,-160.0,0.00037534,14]
[383912955,1757171545289,-407.76709529,0.00037534,8]